fUST/lending_fUST_20240702
["ID","MTS","AMOUNT","RATE_DAILY","PERIOD"]
[330884804,1719900640605,-500.0,0.00015746,2]
[330884806,1719900640615,-742.75,0.00015746,2]
[330884808,1719900640625,-538.94569017,0.00015746,2]
[330885061,1719900643257,-660.44463536,0.00015746,2]
[330885076,1719900643398,-1065.25967447,0.00015746,2]
[330885079,1719900643417,-500.0,0.00015746,2]
[330885081,1719900643426,-855.75,0.00015746,2]
[330885083,1719900643435,-14610.78346857,0.00015746,2]
[330885086,1719900643447,-297.05653143,0.00015746,2]
[330885088,1719900643457,-1327.49,0.00015746,2]
[330885090,1719900643466,-1542.71,0.00015746,2]
[330885091,1719900643476,-2842.46686017,0.00015746,2]
[330885193,1719900646579,-3491.52313983,0.00015746,2]
[330885194,1719900646589,-2645.91,0.00015746,2]
[330885195,1719900646599,-500.0,0.00015746,2]
[330885196,1719900646608,-500.0,0.00015746,2]
[330885197,1719900646618,-160.09,0.00015746,2]
[330885198,1719900646628,-614.13,0.00015746,2]
[330885199,1719900646638,-500.0,0.00015747,2]
[330885200,1719900646647,-782.91,0.00015747,2]
[330885201,1719900646656,-500.0,0.00015747,2]
[330885202,1719900646666,-804.66,0.00015747,2]
[330885203,1719900646675,-500.0,0.00015747,2]
[330885204,1719900646685,-245.67990072,0.00015747,2]
[330885206,1719900722071,250.0,0.00014739,2]
[330885208,1719900762011,154.97060558,0.00014999,2]
[330885209,1719900766118,1487.2316115,0.00014999,2]
[330885210,1719900771296,831.38457913,0.00014999,2]
[330885211,1719900798991,210.623708,0.00014999,2]
[330885212,1719900817335,155.13301134,0.00014999,2]
[330885213,1719900825734,598.16058774,0.00014999,2]
[330885214,1719900831687,1000.0,0.00024,59]
[330885215,1719900846216,217.16009615,0.00014999,2]
[330885216,1719900850747,1000.0,0.00022,30]
[330885218,1719900944271,1058.87397207,0.00015,2]
[330885238,1719901470871,207.87,0.00016008,62]
[330885245,1719901597773,1791.2897047,0.00014746,2]
[330885251,1719901780773,6652.7102953,0.00014719,2]
[330885252,1719901780801,1579.6480903,0.00014719,2]
[330885278,1719901834342,-150.62089986,0.00015452,2]
[330885280,1719901834356,-1366.27614668,0.00015545,2]
[330885282,1719901834365,-732.63,0.00015743,2]
[330885284,1719901834374,-868.6079114,0.00015743,2]
[330885286,1719901834386,-314.50156273,0.00015743,2]
[330885289,1719901834398,-987.18052587,0.00015743,2]
[330885291,1719901834407,-5939.64349804,0.00015743,2]
[330885302,1719901834504,-1616.27614668,0.00015743,2]
[330885700,1719901840837,-493.144,0.00015743,2]
[330885702,1719901840849,-808.88059479,0.00015743,2]
[330885704,1719901840861,-5428.73576049,0.00015743,2]
[330885706,1719901840871,-1478.43,0.00015743,2]
[330885708,1719901840880,-699.50430292,0.00015743,2]
[330885776,1719902238946,258.24743035,0.0001,2]
[330885787,1719902304868,801.20663452,0.00015,2]
[330885789,1719902476747,866.45028013,0.00015,2]
[330885790,1719902576173,2000.0,0.00025,120]
[330885929,1719903041239,-1190.8,0.00015741,2]
[330885930,1719903041249,-1465.07,0.00015741,2]
[330885931,1719903041259,-296.94297989,0.00015741,2]
[330886005,1719903046949,-668.99702011,0.00015741,2]
[330886006,1719903046958,-500.0,0.00015741,2]
[330886008,1719903046968,-1013.7,0.00015741,2]
[330886010,1719903046977,-4725.64,0.00015741,2]
[330886011,1719903046987,-702.11,0.00015741,2]
[330886013,1719903046996,-500.0,0.00015741,2]
[330886015,1719903047007,-2079.86,0.00015741,2]
[330886016,1719903047018,-500.0,0.00015741,2]
[330886017,1719903047028,-500.0,0.00015741,2]
[330886018,1719903047039,-500.0,0.00015741,2]
[330886019,1719903047048,-500.0,0.00015741,2]
[330886020,1719903047058,-7809.69297989,0.00015741,2]
[330886021,1719903047084,-284.61,0.00015741,2]
[330886022,1719903276627,262.95696493,0.00014999,2]
[330886023,1719903287327,154.90116528,0.00014999,2]
[330886024,1719903292458,531.11088939,0.00014999,2]
[330886025,1719903300720,177.76517238,0.00014999,2]
[330886026,1719903310915,692.7872757,0.00014744,2]
[330886027,1719903326304,3771.31175907,0.00014744,2]
[330886028,1719903388114,2142.33635981,0.00014999,2]
[330886029,1719903393627,1330.44466547,0.00014999,2]
[330886030,1719903408209,155.53583945,0.00014999,2]
[330886031,1719903416897,155.14328981,0.00014999,2]
[330886032,1719903423303,3771.31175907,0.00014744,2]
[330886033,1719903437460,899.99483813,0.00015,2]
[330886034,1719903449961,302.47598153,0.00014999,2]
[330886035,1719903513312,1663.03632549,0.00014999,2]
[330886036,1719903580142,167.01642106,0.00014999,2]
[330886037,1719903712833,11147.45043014,0.00014998,2]
[330886038,1719903771656,-20000.0,0.00019848,10]
[330886039,1719903843298,1018.17164134,0.00025,120]
[330886040,1719903905777,1397.4005727,0.00014742,2]
[330886199,1719904238947,-272.3629789,0.00015589,2]
[330886201,1719904238957,-358.64673337,0.00015639,2]
[330886203,1719904238968,-25.99876909,0.00015708,2]
[330886577,1719904243932,-851.00123091,0.00015708,2]
[330886578,1719904243942,-672.85,0.00015738,2]
[330886580,1719904243952,-268.98860625,0.00015738,2]
[330886635,1719904248298,-500.0,0.00015738,2]
[330886636,1719904248309,-1224.21139375,0.00015738,2]
[330886637,1719904248318,-10881.65055599,0.00015738,2]
[330886638,1719904248342,-130.46109705,0.00015738,2]
[330886724,1719904433777,303.74801738,0.00014999,2]
[330886725,1719904678093,18571.1797672,0.00014668,2]
[330886726,1719904963640,291.4726412,0.00014656,2]
[330886728,1719905407546,1000.0,0.00015,4]
[330886755,1719905432010,-325.94522974,0.00015484,2]
[330886757,1719905432020,-150.0,0.00015584,2]
[330886759,1719905432029,-5213.48672142,0.00015596,2]
[330886761,1719905432040,-72.85807802,0.00015596,2]
[330886763,1719905432050,-313.81589169,0.00015636,2]
[330886765,1719905432059,-609.39368332,0.00015637,2]
[330886767,1719905432068,-609.39368331,0.00015638,2]
[330886769,1719905432078,-609.39368331,0.00015638,2]
[330886771,1719905432087,-50.16279694,0.00015639,2]
[330887031,1719905438256,-559.23088637,0.00015639,2]
[330887033,1719905438266,-609.39368331,0.00015639,2]
[330887035,1719905438277,-1141.18,0.00015736,2]
[330887037,1719905438286,-1500.59,0.00015736,2]
[330887039,1719905438296,-925.7,0.00015736,2]
[330887041,1719905438305,-971.46,0.00015736,2]
[330887043,1719905438315,-500.0,0.00015736,2]
[330887045,1719905438324,-4528.74,0.00015736,2]
[330887047,1719905438333,-500.0,0.00015736,2]
[330887049,1719905438343,-500.0,0.00015736,2]
[330887051,1719905438352,-674.44,0.00015736,2]
[330887053,1719905438362,-1910.15,0.00015736,2]
[330887055,1719905438371,-500.0,0.00015736,2]
[330887057,1719905438381,-820.1,0.00015736,2]
[330887059,1719905438390,-12941.32,0.00015736,2]
[330887061,1719905438400,-1272.18,0.00015736,2]
[330887062,1719905438409,-1416.83,0.00015736,2]
[330887064,1719905438418,-6070.08,0.00015736,2]
[330887066,1719905438428,-2506.52,0.00015736,2]
[330887068,1719905438437,-500.0,0.00015736,2]
[330887070,1719905438447,-588.54,0.00015736,2]
[330887072,1719905438457,-628.04298704,0.00015736,2]
[330887074,1719905438467,-509.38977064,0.00015736,2]
[330887076,1719905438476,-500.0,0.00015736,2]
[330887078,1719905438486,-500.0,0.00015737,2]
[330887080,1719905438495,-500.0,0.00015737,2]
[330887082,1719905438504,-500.0,0.00015737,2]
[330887084,1719905438513,-500.0,0.00015737,2]
[330887086,1719905438523,-500.0,0.00015737,2]
[330887088,1719905438532,-500.0,0.00015737,2]
[330887090,1719905438541,-513.74335167,0.00015737,2]
[330887092,1719905438551,-500.0,0.00015737,2]
[330887094,1719905438561,-577.08,0.00015737,2]
[330887096,1719905438571,-151.0,0.00015737,2]
[330887098,1719905438581,-151.0,0.00015737,2]
[330887100,1719905438591,-151.0,0.00015737,2]
[330887102,1719905438601,-151.0,0.00015737,2]
[330887104,1719905438611,-503.5390605,0.00015737,2]
[330887106,1719905438620,-151.0,0.00015737,2]
[330887108,1719905438630,-151.0,0.00015737,2]
[330887110,1719905438640,-170.631782,0.00015737,2]
[330887112,1719905438649,-500.0,0.00015737,2]
[330887114,1719905438659,-500.0,0.00015737,2]
[330887116,1719905438668,-198.73304444,0.00015737,2]
[330887118,1719905438678,-500.0,0.00015737,2]
[330887120,1719905438688,-500.0,0.00015737,2]
[330887122,1719905438698,-267.48543849,0.00015737,2]
[330887124,1719905438707,-501.15624973,0.00015737,2]
[330887126,1719905438717,-771.13,0.00015737,2]
[330887128,1719905438726,-505.02014253,0.00015737,2]
[330887130,1719905438736,-612.60230978,0.00015737,2]
[330887133,1719905438752,-516.39611507,0.00015737,2]
[330887135,1719905438767,-501.76319815,0.00015737,2]
[330887137,1719905438777,-505.15109191,0.00015737,2]
[330887138,1719905438787,-600.59,0.00015737,2]
[330887139,1719905438797,-504.65022156,0.00015737,2]
[330887140,1719905438808,-501.11221528,0.00015737,2]
[330887141,1719905438822,-561.65174712,0.00015737,2]
[330887142,1719905438832,-500.0,0.00015737,2]
[330887143,1719905438843,-348.63954583,0.00015737,2]
[330887144,1719905438853,-828.1,0.00015737,2]
[330887145,1719905438864,-504.8269389,0.00015737,2]
[330887146,1719905438874,-505.0342328,0.00015737,2]
[330887147,1719905438884,-500.0,0.00015737,2]
[330887148,1719905438894,-564.98,0.00015737,2]
[330887149,1719905438907,-539.15093583,0.00015737,2]
[330887150,1719905438917,-614.67263304,0.00015737,2]
[330887151,1719905438927,-501.7180616,0.00015737,2]
[330887152,1719905438937,-503.35064203,0.00015737,2]
[330887153,1719905438947,-500.0,0.00015737,2]
[330887155,1719905438957,-504.71981886,0.00015737,2]
[330887157,1719905438967,-506.85301723,0.00015737,2]
[330887159,1719905438977,-500.0,0.00015737,2]
[330887161,1719905438987,-502.40677762,0.00015737,2]
[330887163,1719905438997,-503.9261028,0.00015737,2]
[330887165,1719905439007,-504.93651187,0.00015737,2]
[330887167,1719905439017,-590.41164483,0.00015737,2]
[330887169,1719905439027,-504.62409649,0.00015737,2]
[330887171,1719905439038,-506.82999918,0.00015737,2]
[330887173,1719905439048,-502.06658605,0.00015737,2]
[330887175,1719905439059,-504.09428953,0.00015737,2]
[330887177,1719905439069,-512.60662424,0.00015737,2]
[330887179,1719905439080,-504.57859282,0.00015737,2]
[330887181,1719905439093,-503.25202068,0.00015737,2]
[330887183,1719905439104,-512.88295566,0.00015737,2]
[330887185,1719905439114,-500.0,0.00015737,2]
[330887187,1719905439125,-502.94919658,0.00015737,2]
[330887189,1719905439136,-504.2670143,0.00015737,2]
[330887191,1719905439147,-500.0,0.00015737,2]
[330887193,1719905439158,-506.29112508,0.00015737,2]
[330887195,1719905439169,-501.42486267,0.00015737,2]
[330887197,1719905439179,-500.0,0.00015737,2]
[330887199,1719905439190,-527.35333279,0.00015737,2]
[330887201,1719905439201,-420.67237425,0.00015737,2]
[330887203,1719905439211,-501.81069986,0.00015737,2]
[330887205,1719905439222,-505.20193807,0.00015737,2]
[330887207,1719905439232,-508.58408897,0.00015737,2]
[330887209,1719905439243,-500.0,0.00015737,2]
[330887211,1719905439253,-502.44223617,0.00015737,2]
[330887213,1719905439263,-501.2455063,0.00015737,2]
[330887215,1719905439274,-503.11282406,0.00015737,2]
[330887217,1719905439285,-256.99,0.00015737,2]
[330887219,1719905439295,-500.0,0.00015737,2]
[330887221,1719905439305,-4037.24,0.00015737,2]
[330887223,1719905439315,-500.0,0.00015737,2]
[330887225,1719905439325,-507.71336386,0.00015737,2]
[330887227,1719905439336,-500.0,0.00015737,2]
[330887229,1719905439347,-507.34952294,0.00015737,2]
[330887231,1719905439357,-500.0,0.00015737,2]
[330887233,1719905439367,-502.7887817,0.00015737,2]
[330887235,1719905439378,-500.0,0.00015737,2]
[330887237,1719905439388,-500.0,0.00015737,2]
[330887239,1719905439399,-504.38520891,0.00015737,2]
[330887241,1719905439409,-540.73,0.00015737,2]
[330887243,1719905439419,-521.92,0.00015737,2]
[330887245,1719905439429,-611.75,0.00015737,2]
[330887247,1719905439439,-305.24475552,0.00015737,2]
[330887249,1719905439449,-500.0,0.00015737,2]
[330887251,1719905439458,-529.1070628,0.00015737,2]
[330887253,1719905439468,-500.0,0.00015737,2]
[330887255,1719905439478,-500.0,0.00015737,2]
[330887257,1719905439489,-500.0,0.00015737,2]
[330887259,1719905439499,-553.43622172,0.00015737,2]
[330887261,1719905439508,-500.0,0.00015737,2]
[330887263,1719905439518,-506.42606535,0.00015737,2]
[330887265,1719905439528,-500.0,0.00015737,2]
[330887267,1719905439538,-504.31734906,0.00015737,2]
[330887269,1719905439549,-506.80036557,0.00015737,2]
[330887271,1719905439559,-500.0,0.00015737,2]
[330887273,1719905439571,-512.77177441,0.00015737,2]
[330887275,1719905439581,-503.78654545,0.00015737,2]
[330887277,1719905439592,-500.0,0.00015737,2]
[330887279,1719905439606,-505.40690098,0.00015737,2]
[330887281,1719905439617,-1047.63,0.00015737,2]
[330887283,1719905439627,-505.82687688,0.00015737,2]
[330887286,1719905439638,-738.63,0.00015737,2]
[330887288,1719905439651,-500.0,0.00015737,2]
[330887291,1719905439661,-502.30151812,0.00015737,2]
[330887292,1719905439671,-500.0,0.00015737,2]
[330887295,1719905439681,-504.0605903,0.00015737,2]
[330887297,1719905439692,-338.67036204,0.00015737,2]
[330887299,1719905439703,-503.86377363,0.00015737,2]
[330887300,1719905439713,-505.56273882,0.00015737,2]
[330887302,1719905439723,-500.0,0.00015737,2]
[330887304,1719905439733,-500.0,0.00015737,2]
[330887307,1719905439744,-500.0,0.00015737,2]
[330887308,1719905439755,-500.0,0.00015737,2]
[330887311,1719905439765,-500.0,0.00015737,2]
[330887312,1719905439775,-500.0,0.00015737,2]
[330887314,1719905439785,-500.0,0.00015737,2]
[330887316,1719905439795,-836.92,0.00015737,2]
[330887318,1719905439805,-614.85742571,0.00015737,2]
[330887320,1719905439817,-504.04426348,0.00015737,2]
[330887322,1719905439828,-5123.57,0.00015737,2]
[330887325,1719905439840,-500.0,0.00015737,2]
[330887327,1719905439850,-283.41994305,0.00015737,2]
[330887329,1719905439860,-321.39129053,0.00015737,2]
[330887331,1719905439870,-194.13516742,0.00015737,2]
[330887333,1719905439880,-773.9,0.00015737,2]
[330887335,1719905439891,-504.28401104,0.00015737,2]
[330887338,1719905439902,-504.93312947,0.00015737,2]
[330887341,1719905439912,-502.33361109,0.00015737,2]
[330887344,1719905439921,-507.02490653,0.00015737,2]
[330887347,1719905439931,-500.0,0.00015737,2]
[330887349,1719905439940,-500.0,0.00015737,2]
[330887353,1719905439950,-500.0,0.00015737,2]
[330887357,1719905439960,-500.0,0.00015737,2]
[330887360,1719905439970,-537.31,0.00015737,2]
[330887364,1719905439979,-500.0,0.00015737,2]
[330887368,1719905439989,-500.0,0.00015737,2]
[330887371,1719905440000,-500.0,0.00015737,2]
[330887374,1719905440009,-1007.14,0.00015737,2]
[330887377,1719905440019,-626.50658275,0.00015737,2]
[330887380,1719905440029,-500.0,0.00015737,2]
[330887382,1719905440039,-502.08593583,0.00015737,2]
[330887385,1719905440048,-500.0,0.00015737,2]
[330887387,1719905440058,-520.12525385,0.00015737,2]
[330887389,1719905440068,-500.0,0.00015737,2]
[330887391,1719905440078,-500.0,0.00015737,2]
[330887393,1719905440089,-518.76,0.00015737,2]
[330887395,1719905440099,-500.0,0.00015737,2]
[330887397,1719905440109,-500.0,0.00015737,2]
[330887399,1719905440119,-500.0,0.00015737,2]
[330887401,1719905440129,-500.0,0.00015737,2]
[330887403,1719905440140,-963.39,0.00015737,2]
[330887406,1719905440151,-750.29,0.00015737,2]
[330887410,1719905440162,-500.0,0.00015737,2]
[330887414,1719905440172,-500.0,0.00015738,2]
[330887417,1719905440183,-550.78,0.00015738,2]
[330887420,1719905440193,-500.0,0.00015738,2]
[330887423,1719905440204,-500.0,0.00015738,2]
[330887426,1719905440214,-655.23,0.00015738,2]
[330887429,1719905440223,-500.0,0.00015738,2]
[330887432,1719905440233,-713.39,0.00015738,2]
[330887435,1719905440243,-500.0,0.00015738,2]
[330887438,1719905440253,-870.53,0.00015738,2]
[330887441,1719905440263,-500.0,0.00015738,2]
[330887444,1719905440273,-500.0,0.00015738,2]
[330887447,1719905440283,-500.0,0.00015738,2]
[330887450,1719905440293,-773.9,0.00015738,2]
[330887452,1719905440303,-590.03,0.00015738,2]
[330887455,1719905440313,-500.0,0.00015738,2]
[330887457,1719905440323,-500.5476229,0.00015739,2]
[330887459,1719905440333,-508.56518972,0.00015739,2]
[330887461,1719905440343,-614.92457479,0.00015739,2]
[330887463,1719905440352,-500.0,0.00015739,2]
[330887465,1719905440362,-500.0,0.00015739,2]
[330887467,1719905440372,-507.68983479,0.00015739,2]
[330887469,1719905440382,-500.0,0.00015739,2]
[330887471,1719905440393,-513.15,0.00015739,2]
[330887473,1719905440403,-503.1956384,0.00015739,2]
[330887475,1719905440413,-502.45396476,0.00015739,2]
[330887477,1719905440423,-505.59651963,0.00015739,2]
[330887479,1719905440433,-586.35282653,0.00015739,2]
[330887481,1719905440443,-500.0,0.00015739,2]
[330887483,1719905440453,-11829.7,0.00015739,2]
[330887485,1719905440463,-773.9,0.00015739,2]
[330887487,1719905440474,-500.0,0.00015739,2]
[330887489,1719905440485,-500.0,0.00015739,2]
[330887491,1719905440495,-8333.4,0.00015739,2]
[330887493,1719905440505,-500.0,0.00015739,2]
[330887495,1719905440515,-1528.46,0.00015739,2]
[330887497,1719905440525,-500.0,0.00015739,2]
[330887499,1719905440535,-3778.98,0.0001574,2]
[330887501,1719905440545,-1122.32,0.00015741,2]
[330887503,1719905440556,-4330.0,0.00015741,2]
[330887505,1719905440567,-748.46,0.00015741,2]
[330887507,1719905440578,-773.9,0.00015741,2]
[330887509,1719905440588,-721.76,0.00015741,2]
[330887511,1719905440599,-538.43,0.00015741,2]
[330887513,1719905440609,-877.0,0.00015782,2]
[330887515,1719905440619,-291.754,0.00015788,2]
[330887517,1719905440629,-4489.14296378,0.00015816,2]
[330887519,1719905440639,-12500.50923633,0.000159,2]
[330887521,1719905440650,-293.1949975,0.000159,2]
[330887523,1719905440660,-293.1949975,0.000159,2]
[330887525,1719905440670,-293.1949975,0.000159,2]
[330887527,1719905440680,-293.1949975,0.000159,2]
[330887529,1719905440690,-153.0,0.000159,2]
[330887531,1719905440700,-153.0,0.000159,2]
[330887533,1719905440710,-293.1949975,0.000159,2]
[330887535,1719905440720,-153.0,0.000159,2]
[330887537,1719905440730,-293.1949975,0.000159,2]
[330887538,1719905440740,-153.0,0.000159,2]
[330887539,1719905440750,-293.1949975,0.000159,2]
[330887540,1719905440759,-293.1949975,0.000159,2]
[330887541,1719905440769,-153.0,0.000159,2]
[330887542,1719905440778,-153.0,0.000159,2]
[330887543,1719905440788,-293.1949975,0.000159,2]
[330887544,1719905440798,-293.1949975,0.000159,2]
[330887545,1719905440807,-153.0,0.000159,2]
[330887546,1719905440819,-153.0,0.000159,2]
[330887547,1719905440830,-293.1949975,0.000159,2]
[330887548,1719905440839,-153.0,0.000159,2]
[330887549,1719905440848,-153.0,0.000159,2]
[330887550,1719905440857,-293.1949975,0.000159,2]
[330887551,1719905440869,-293.1949975,0.000159,2]
[330887552,1719905440878,-293.1949975,0.000159,2]
[330887553,1719905440888,-199.1710651,0.000159,2]
[330887555,1719905440900,-293.1949975,0.000159,2]
[330887556,1719905440910,-293.1949975,0.000159,2]
[330887557,1719905440920,-293.1949975,0.000159,2]
[330887558,1719905440929,-293.1949975,0.000159,2]
[330887560,1719905440939,-293.1949975,0.000159,2]
[330887563,1719905440949,-293.1949975,0.000159,2]
[330887575,1719905441133,-293.1949975,0.000159,2]
[330887577,1719905441144,-293.1949975,0.000159,2]
[330887579,1719905441153,-293.1949975,0.000159,2]
[330887581,1719905441163,-220.6184454,0.000159,2]
[330887582,1719905441172,-293.1302778,0.000159,2]
[330887584,1719905441182,-293.1949975,0.000159,2]
[330887585,1719905441191,-308.9771712,0.000159,2]
[330887587,1719905441201,-293.1949975,0.000159,2]
[330887589,1719905441210,-293.1949975,0.000159,2]
[330887591,1719905441220,-71562.26752723,0.00015913,2]
[330887637,1719905443453,-506.50097805,0.00015737,2]
[330887639,1719905443462,-9213.68,0.00015741,2]
[330887640,1719905443472,-293.1949976,0.000159,2]
[330887642,1719905443481,-153.0,0.000159,2]
[330887644,1719905443490,-8679.78337615,0.00015913,2]
[330887654,1719905503280,261.717032,0.00014782,2]
[330887655,1719905579140,2117.93187801,0.00014999,2]
[330887656,1719905591467,2588.84827711,0.00014782,2]
[330887661,1719905672512,200.79020594,0.00014999,2]
[330887662,1719905674708,541.26704253,0.00014999,2]
[330887665,1719905685202,868.36762337,0.00014999,2]
[330887666,1719905703020,516.79936011,0.00014999,2]
[330887667,1719905704328,2653.2737915,0.00014731,2]
[330887668,1719905704760,1350.26446598,0.00014999,2]
[330887669,1719905707956,2129.2320514,0.00014999,2]
[330887670,1719905718232,166.81585804,0.00014999,2]
[330887671,1719905725839,776.67023249,0.00014999,2]
[330887672,1719905732133,2117.93187801,0.00014999,2]
[330887673,1719905735618,960.44716727,0.00014999,2]
[330887674,1719905736513,359.04909499,0.00014999,2]
[330887675,1719905736842,776.67023249,0.00014999,2]
[330887676,1719905753746,9015.8532343,0.00014731,2]
[330887677,1719905774708,-274.58890522,0.00015636,2]
[330887678,1719905774734,-156.83966735,0.00015637,2]
[330887679,1719905774758,-742.84086594,0.000157,2]
[330887680,1719905774783,-156.83966735,0.00015717,2]
[330887681,1719905774810,-646.33,0.00015735,2]
[330887682,1719905774835,-1830.56,0.00015735,2]
[330887683,1719905774862,-12402.1,0.00015735,2]
[330887684,1719905774887,-1357.8,0.00015735,2]
[330887685,1719905774913,-2402.08,0.00015735,2]
[330887686,1719905774937,-564.02,0.00015735,2]
[330887687,1719905775116,-500.0,0.00015735,2]
[330887688,1719905775153,-1093.63,0.00015735,2]
[330887689,1719905775179,-1438.07,0.00015735,2]
[330887690,1719905775203,-500.0,0.00015735,2]
[330887691,1719905775229,-887.13,0.00015735,2]
[330887692,1719905775255,-4058.61,0.00015735,2]
[330887693,1719905775283,-930.99,0.00015735,2]
[330887694,1719905775307,-500.0,0.00015735,2]
[330887695,1719905775332,-4340.04,0.00015735,2]
[330887696,1719905775356,-500.0,0.00015736,2]
[330887697,1719905775379,-739.0,0.00015736,2]
[330887698,1719905775401,-500.0,0.00015736,2]
[330887699,1719905775424,-500.0,0.00015736,2]
[330887700,1719905775451,-500.0,0.00015736,2]
[330887701,1719905775473,-575.56,0.00015736,2]
[330887702,1719905775496,-500.0,0.00015736,2]
[330887703,1719905775520,-793.6,0.00015736,2]
[330887704,1719905775544,-500.0,0.00015736,2]
[330887705,1719905775568,-785.93,0.00015736,2]
[330887706,1719905775591,-500.0,0.00015736,2]
[330887707,1719905775615,-541.44,0.00015736,2]
[330887708,1719905775639,-1219.17,0.00015736,2]
[330887709,1719905775662,-500.0,0.00015736,2]
[330887710,1719905775686,-5817.16,0.00015736,2]
[330887711,1719905775714,-500.0,0.00015736,2]
[330887712,1719905775737,-500.0,0.00015736,2]
[330887713,1719905775760,-500.0,0.00015736,2]
[330887714,1719905775783,-500.0,0.00015736,2]
[330887715,1719905775805,-500.0,0.00015736,2]
[330887716,1719905775828,-500.0,0.00015736,2]
[330887717,1719905775852,-518.48777782,0.00015736,2]
[330887718,1719905775876,-500.0,0.00015736,2]
[330887719,1719905775898,-500.17,0.00015736,2]
[330887720,1719905775922,-500.0,0.00015736,2]
[330887721,1719905775947,-500.0,0.00015736,2]
[330887722,1719905775970,-553.04,0.00015736,2]
[330887723,1719905775996,-500.0,0.00015736,2]
[330887724,1719905776019,-500.0,0.00015736,2]
[330887725,1719905776042,-500.0,0.00015737,2]
[330887726,1719905776072,-507.02019711,0.00015737,2]
[330887727,1719905776097,-4910.09,0.00015737,2]
[330887728,1719905776120,-500.0,0.00015737,2]
[330887729,1719905776143,-500.0,0.00015737,2]
[330887730,1719905776168,-500.0,0.00015737,2]
[330887731,1719905776194,-527.83,0.00015737,2]
[330887732,1719905776220,-500.0,0.00015737,2]
[330887733,1719905776247,-500.0,0.00015737,2]
[330887734,1719905776272,-965.18,0.00015737,2]
[330887735,1719905776296,-387.36119849,0.00015737,2]
[330887736,1719905776320,-627.93,0.00015737,2]
[330887737,1719905776344,-500.0,0.00015737,2]
[330887738,1719905776369,-500.0,0.00015737,2]
[330887739,1719905776395,-565.45,0.00015737,2]
[330887740,1719905776421,-500.0,0.00015737,2]
[330887741,1719905776445,-683.67,0.00015737,2]
[330887742,1719905776469,-500.0,0.00015737,2]
[330887743,1719905776493,-834.25,0.00015737,2]
[330887744,1719905776517,-500.0,0.00015737,2]
[330887745,1719905776540,-500.0,0.00015737,2]
[330887746,1719905776565,-500.0,0.00015737,2]
[330887747,1719905776589,-500.0,0.00015737,2]
[330887748,1719905776612,-500.0,0.00015737,2]
[330887749,1719905776637,-500.0,0.00015739,2]
[330887750,1719905776660,-5665.19172072,0.00015739,2]
[330887751,1719905839469,200.79020594,0.00014999,2]
[330887753,1719905864873,1466.0281113,0.00014812,2]
[330887754,1719905868106,500.0,0.00015,2]
[330887755,1719905892138,2117.93187801,0.00014999,2]
[330887757,1719905921846,776.67023249,0.00014999,2]
[330887759,1719906004477,200.79020594,0.00014999,2]
[330887761,1719906096868,357.0407322,0.00014999,2]
[330887762,1719906177484,206.25045201,0.00014999,2]
[330887764,1719906402677,1000.0,0.00014999,2]
[330887802,1719906632051,-500.0,0.000155,2]
[330887803,1719906632062,-22.38253249,0.00015634,2]
[330887804,1719906632073,-217.88275956,0.00015634,2]
[330887805,1719906632083,-156.83966735,0.00015635,2]
[330887806,1719906632092,-141.48524943,0.000157,2]
[330887807,1719906632104,-358.51475057,0.000157,2]